lending/lending_fUSD_20240830
["ID","MTS","AMOUNT","RATE_DAILY","PERIOD"]
[336677828,1725012645940,-151.0,0.0002472,7]
[336677829,1725012645953,-151.0,0.0002472,7]
[336677830,1725012645963,-151.0,0.0002472,7]
[336677831,1725012645974,-151.0,0.0002472,7]
[336677832,1725012645985,-192.554301,0.0002472,7]
[336677833,1725012645997,-192.554301,0.0002472,7]
[336677834,1725012646007,-169.327556,0.0002472,7]
[336677835,1725012646018,-151.0,0.0002472,7]
[336677836,1725012646031,-151.0,0.0002472,7]
[336677837,1725012646041,-151.0,0.0002472,7]
[336677838,1725012646052,-500.0,0.00024721,4]
[336677839,1725012646063,-50523.79,0.00024721,4]
[336677840,1725012646073,-1060.63,0.00024721,4]
[336677841,1725012646084,-868.6,0.00024721,4]
[336677842,1725012646095,-500.0,0.00024721,4]
[336677843,1725012646106,-500.0,0.00024721,4]
[336677844,1725012646116,-178.8,0.00024721,4]
[336677845,1725012646127,-500.0,0.00024721,4]
[336677846,1725012646137,-500.0,0.00024721,4]
[336677847,1725012646149,-500.0,0.00024721,4]
[336677848,1725012646159,-3135.83,0.00024721,4]
[336677849,1725012646170,-500.0,0.00024721,4]
[336677850,1725012646181,-500.0,0.00024721,4]
[336677851,1725012646192,-620.1736716,0.00024721,4]
[336677852,1725012646202,-3755.17,0.00024721,4]
[336677853,1725012646213,-500.0,0.00024721,4]
[336677854,1725012646223,-500.0,0.00024721,4]
[336677855,1725012646234,-500.0,0.00024721,4]
[336677856,1725012646245,-2233.19,0.00024721,4]
[336677857,1725012646256,-500.0,0.00024721,4]
[336677858,1725012646266,-500.0,0.00024721,4]
[336677859,1725012646277,-500.0,0.00024721,4]
[336677860,1725012646288,-2970.84,0.00024721,4]
[336677861,1725012646299,-500.0,0.00024721,4]
[336677862,1725012646309,-500.0,0.00024721,4]
[336677863,1725012646320,-500.0,0.00024721,4]
[336677864,1725012646331,-500.0,0.00024721,4]
[336677865,1725012646342,-500.0,0.00024721,4]
[336677866,1725012646352,-500.0,0.00024721,4]
[336677867,1725012646363,-498.9,0.00024721,4]
[336677868,1725012646373,-500.0,0.00024721,4]
[336677869,1725012646384,-500.0,0.00024721,4]
[336677870,1725012646395,-517.82671204,0.00024721,4]
[336677871,1725012646407,-500.0,0.00024721,4]
[336677872,1725012646417,-500.0,0.00024721,4]
[336677873,1725012646428,-500.0,0.00024721,4]
[336677874,1725012646438,-1281.58,0.00024721,4]
[336677875,1725012647212,-500.0,0.00024721,4]
[336677876,1725012647233,-1461.89,0.00024721,4]
[336677877,1725012647255,-867.85,0.00024721,4]
[336677878,1725012647280,-1954.55,0.00024721,4]
[336677879,1725012647290,-879.78,0.00024721,4]
[336677880,1725012647302,-500.0,0.00024721,4]
[336677881,1725012647312,-1314.53,0.00024721,4]
[336677882,1725012647323,-1911.57,0.00024721,4]
[336677883,1725012647333,-2232.28,0.00024721,4]
[336677884,1725012647342,-1092.6,0.00024721,4]
[336677885,1725012647352,-1674.93,0.00024721,4]
[336677886,1725012647362,-500.0,0.00024721,4]
[336677887,1725012647371,-501.90547566,0.00024721,4]
[336677888,1725012647380,-1262.63,0.00024721,4]
[336677889,1725012647389,-1200.18,0.00024721,4]
[336677890,1725012647399,-1124.08,0.00024721,4]
[336677891,1725012647408,-1332.72,0.00024721,4]
[336677892,1725012647417,-500.0,0.00024721,4]
[336677893,1725012647426,-1050.1,0.00024721,4]
[336677894,1725012647436,-500.0,0.00024721,4]
[336677895,1725012647445,-1075.91,0.00024721,4]
[336677896,1725012647454,-958.21,0.00024721,4]
[336677897,1725012647463,-837.85,0.00024721,4]
[336677898,1725012647473,-1052.79,0.00024721,4]
[336677899,1725012647482,-1096.8,0.00024721,4]
[336677900,1725012647491,-1352.54,0.00024721,4]
[336677901,1725012647507,-784.39,0.00024721,4]
[336677902,1725012647516,-848.39,0.00024721,4]
[336677903,1725012647526,-245.812403,0.00024721,7]
[336677904,1725012647535,-245.812403,0.00024721,7]
[336677905,1725012647546,-151.0,0.00024721,7]
[336677906,1725012647555,-151.0,0.00024721,7]
[336677907,1725012647564,-433.543962,0.00024721,7]
[336677908,1725012647573,-433.543962,0.00024721,7]
[336677909,1725012647583,-151.0,0.00024721,7]
[336677910,1725012647592,-2544.87,0.00024722,4]
[336677911,1725012647602,-4800.9,0.00024722,4]
[336677912,1725012647611,-3311.31,0.00024722,4]
[336677913,1725012647622,-2471.97,0.00024722,4]
[336677914,1725012647632,-2861.59,0.00024722,4]
[336677915,1725012647642,-2970.78,0.00024722,4]
[336677916,1725012647651,-2932.79,0.00024722,4]
[336677917,1725012647661,-2856.24,0.00024722,4]
[336677918,1725012647670,-663.682539,0.00024722,7]
[336677919,1725012647679,-663.682539,0.00024722,7]
[336677920,1725012647689,-151.0,0.00024726,7]
[336677921,1725012647698,-151.0,0.00024726,7]
[336677922,1725012647707,-598.61212013,0.00024736,2]
[336677923,1725012647716,-1500.0,0.00024739,2]
[336677924,1725012647726,-1500.0,0.00024743,2]
[336677925,1725012647735,-598.61212013,0.00024767,2]
[336677926,1725012647744,-500.0,0.00024773,2]
[336677927,1725012647753,-500.0,0.00024774,2]
[336677928,1725012647763,-500.0,0.00024783,2]
[336677929,1725012647772,-500.0,0.00024792,2]
[336677930,1725012647781,-588.0,0.000248,21]
[336677931,1725012647791,-1000.0,0.00024812,30]
[336677932,1725012647800,-500.0,0.00024816,4]
[336677933,1725012647809,-3916.89,0.00024816,4]
[336677934,1725012647818,-2102.01,0.00024818,4]
[336677935,1725012647828,-808.39651274,0.00024818,2]
[336677936,1725012647838,-221.93364425,0.00024818,2]
[336677937,1725012647847,-9368.5975393,0.00024818,2]
[336677938,1725012647857,-902.23,0.00024819,4]
[336677939,1725012647866,-1083.33,0.00024819,4]
[336677940,1725012647875,-701.6,0.00024819,4]
[336677941,1725012647885,-701.6,0.00024819,4]
[336677942,1725012647895,-701.6,0.00024819,4]
[336677943,1725012647904,-701.6,0.00024819,4]
[336677944,1725012647914,-701.82423499,0.00024819,4]
[336677945,1725012647924,-12779.71,0.00024819,4]
[336677946,1725012647933,-151.0,0.00024819,7]
[336677947,1725012647943,-2651.659067,0.00024819,7]
[336677948,1725012647952,-168.986112,0.00024819,7]
[336677949,1725012647962,-2651.659067,0.00024819,7]
[336677950,1725012647971,-151.0,0.00024819,7]
[336677951,1725012647980,-151.0,0.00024819,7]
[336677952,1725012647990,-179.120572,0.00024819,7]
[336677953,1725012647999,-179.120572,0.00024819,7]
[336677954,1725012648009,-162.390231,0.00024819,7]
[336677955,1725012648019,-162.390231,0.00024819,7]
[336677956,1725012648029,-563.66,0.0002482,4]
[336677957,1725012648038,-554.86,0.0002482,4]
[336677958,1725012648048,-11464.46,0.0002482,4]
[336677959,1725012648058,-23500.99,0.0002482,4]
[336677960,1725012648068,-500.0,0.0002482,4]
[336677961,1725012648077,-500.0,0.0002482,4]
[336677962,1725012648087,-500.0,0.0002482,4]
[336677963,1725012648096,-522.02,0.0002482,4]
[336677964,1725012648106,-500.0,0.0002482,4]
[336677965,1725012648116,-500.0,0.0002482,4]
[336677966,1725012648125,-509.04,0.0002482,4]
[336677967,1725012648135,-500.0,0.0002482,4]
[336677968,1725012648144,-500.0,0.0002482,4]
[336677969,1725012648154,-2706.49,0.0002482,4]
[336677970,1725012648163,-1923.54,0.0002482,4]
[336677971,1725012648174,-1272.75,0.0002482,4]
[336677972,1725012648183,-1434.28,0.0002482,4]
[336677973,1725012648193,-500.0,0.0002482,4]
[336677974,1725012648203,-2712.92,0.0002482,4]
[336677975,1725012648212,-2198.45,0.0002482,4]
[336677976,1725012648222,-500.0,0.0002482,4]
[336677977,1725012648231,-2712.35,0.0002482,4]
[336677978,1725012648241,-500.0,0.0002482,4]
[336677979,1725012648250,-500.0,0.0002482,4]
[336677980,1725012648260,-500.0,0.0002482,4]
[336677981,1725012648270,-1046.37,0.0002482,4]
[336677982,1725012648280,-500.0,0.0002482,4]
[336677983,1725012648290,-2414.6,0.0002482,4]
[336677984,1725012648299,-2700.36,0.0002482,4]
[336677985,1725012648309,-500.0,0.0002482,4]
[336677986,1725012648319,-2566.33,0.0002482,4]
[336677987,1725012648328,-500.0,0.0002482,4]
[336677988,1725012648338,-2330.72,0.0002482,4]
[336677989,1725012648348,-2649.84,0.0002482,4]
[336677990,1725012648358,-4286.93,0.0002482,4]
[336677991,1725012648368,-500.0,0.0002482,4]
[336677992,1725012648377,-500.0,0.0002482,4]
[336677993,1725012648387,-3230.34,0.0002482,4]
[336677994,1725012648398,-500.0,0.0002482,4]
[336677995,1725012648408,-500.0,0.0002482,4]
[336677996,1725012648417,-2122.42,0.0002482,4]
[336677997,1725012648426,-2210.69,0.0002482,4]
[336677998,1725012648436,-2492.68,0.0002482,4]
[336677999,1725012648445,-1174.62,0.0002482,4]
[336678000,1725012648455,-4613.54,0.0002482,4]
[336678001,1725012648465,-500.0,0.0002482,4]
[336678002,1725012648475,-500.0,0.0002482,4]
[336678003,1725012648484,-500.0,0.0002482,4]
[336678004,1725012648494,-500.0,0.0002482,4]
[336678005,1725012648507,-1282.68,0.0002482,4]
[336678006,1725012648517,-500.0,0.0002482,4]
[336678007,1725012648526,-644.14,0.0002482,4]
[336678008,1725012648535,-1651.17,0.0002482,4]
[336678009,1725012648546,-1891.47,0.0002482,4]
[336678010,1725012648555,-1037.36,0.0002482,4]
[336678011,1725012648566,-538.74,0.0002482,4]
[336678012,1725012648576,-685.33,0.0002482,4]
[336678013,1725012648588,-500.0,0.0002482,4]
[336678014,1725012648598,-500.0,0.0002482,4]
[336678015,1725012648608,-500.0,0.0002482,4]
[336678016,1725012648617,-500.0,0.0002482,4]
[336678017,1725012648628,-500.0,0.0002482,4]
[336678018,1725012648638,-453.8130791,0.0002482,4]
[336678019,1725012648648,-500.0,0.0002482,4]
[336678020,1725012648659,-482.78983245,0.0002482,4]
[336678021,1725012648668,-500.0,0.0002482,4]
[336678022,1725012648678,-500.0,0.0002482,4]
[336678023,1725012648687,-500.0,0.0002482,4]
[336678024,1725012648697,-500.0,0.0002482,4]
[336678025,1725012648707,-500.0,0.0002482,4]
[336678026,1725012648716,-500.0,0.0002482,4]
[336678027,1725012648726,-500.0,0.0002482,4]
[336678028,1725012648736,-500.0,0.0002482,4]
[336678029,1725012648746,-500.0,0.0002482,4]
[336678030,1725012648755,-500.0,0.0002482,4]
[336678031,1725012648766,-500.0,0.0002482,4]
[336678032,1725012648775,-500.0,0.0002482,4]
[336678033,1725012648785,-17248.92,0.0002482,4]
[336678034,1725012648795,-17248.92,0.0002482,4]
[336678035,1725012648805,-902.23,0.0002482,4]
[336678036,1725012648815,-1083.33,0.0002482,4]
[336678037,1725012648825,-151.0,0.0002482,7]
[336678038,1725012648835,-12779.71,0.0002482,4]
[336678039,1725012648844,-245.812403,0.0002482,7]
[336678040,1725012648854,-245.812403,0.0002482,7]
[336678041,1725012648863,-151.0,0.0002482,7]
[336678042,1725012648872,-151.0,0.0002482,7]
[336678043,1725012648882,-240.559764,0.0002482,7]
[336678044,1725012648891,-151.0,0.0002482,7]
[336678045,1725012648901,-151.0,0.0002482,7]
[336678046,1725012648911,-2102.01,0.0002482,4]
[336678047,1725012648920,-2102.01,0.0002482,4]
[336678048,1725012648929,-2102.01,0.0002482,4]
[336678049,1725012648939,-2102.01,0.0002482,4]
[336678050,1725012648948,-2102.1007473,0.0002482,4]
[336678051,1725012648957,-237.278374,0.0002482,7]
[336678052,1725012648967,-500.0,0.0002482,4]
[336678053,1725012648976,-500.0,0.0002482,4]
[336678054,1725012648986,-151.0,0.0002482,7]
[336678055,1725012648995,-151.0,0.0002482,7]
[336678056,1725012649005,-3916.89,0.0002482,4]
[336678057,1725012649014,-3916.89,0.0002482,4]
[336678058,1725012649023,-151.0,0.0002482,7]
[336678059,1725012649033,-153.521717,0.0002482,7]
[336678060,1725012649044,-433.543962,0.0002482,7]
[336678061,1725012649054,-433.543962,0.0002482,7]
[336678062,1725012649063,-151.0,0.0002482,7]
[336678063,1725012649073,-277.110349,0.0002482,7]
[336678064,1725012649083,-277.110349,0.0002482,7]
[336678065,1725012649092,-151.0,0.0002482,7]
[336678066,1725012649102,-151.0,0.0002482,7]
[336678067,1725012649112,-156.554502,0.0002482,7]
[336678068,1725012649122,-156.554502,0.0002482,7]
[336678069,1725012649132,-151.0,0.0002482,7]
[336678070,1725012649142,-151.0,0.0002482,7]
[336678071,1725012649152,-151.0,0.0002482,7]
[336678072,1725012649162,-151.0,0.0002482,7]
[336678073,1725012649172,-151.0,0.0002482,7]
[336678074,1725012649182,-151.0,0.0002482,7]
[336678075,1725012649191,-192.554301,0.0002482,7]
[336678076,1725012649201,-192.554301,0.0002482,7]
[336678077,1725012649211,-151.0,0.0002482,7]
[336678078,1725012649220,-151.0,0.0002482,7]
[336678079,1725012649230,-151.0,0.0002482,7]
[336678080,1725012649240,-2544.87,0.00024821,4]
[336678081,1725012649250,-4800.9,0.00024821,4]
[336678082,1725012649260,-3311.31,0.00024821,4]
[336678083,1725012649271,-2471.97,0.00024821,4]
[336678084,1725012649281,-2861.59,0.00024821,4]
[336678085,1725012649291,-2754.33,0.00024821,4]
[336678086,1725012649301,-2970.78,0.00024821,4]
[336678087,1725012649311,-3968.08,0.00024821,4]
[336678088,1725012649321,-2624.94,0.00024821,4]
[336678089,1725012649331,-6896.19,0.00024821,4]
[336678090,1725012649340,-2932.79,0.00024821,4]
[336678091,1725012649349,-3064.23,0.00024821,4]
[336678092,1725012649360,-2930.3,0.00024821,4]
[336678093,1725012649369,-2675.57,0.00024821,4]
[336678094,1725012649379,-2785.91,0.00024821,4]
[336678095,1725012649388,-3009.69,0.00024821,4]
[336678096,1725012649398,-2948.65,0.00024821,4]
[336678097,1725012649407,-2856.24,0.00024821,4]
[336678098,1725012649417,-2639.64,0.00024821,4]
[336678099,1725012649427,-500.0,0.00024821,4]
[336678100,1725012649436,-500.0,0.00024821,4]
[336678101,1725012649446,-500.0,0.00024821,4]
[336678102,1725012649455,-500.0,0.00024821,4]
[336678103,1725012649465,-500.0,0.00024821,4]
[336678104,1725012649556,-500.0,0.00024821,4]
[336678105,1725012649566,-500.0,0.00024821,4]
[336678106,1725012649574,-500.0,0.00024821,4]
[336678107,1725012649586,-500.0,0.00024821,4]
[336678108,1725012649597,-216.25,0.00024821,4]
[336678109,1725012649606,-500.0,0.00024821,4]
[336678110,1725012649615,-500.0,0.00024821,4]
[336678111,1725012649624,-500.0,0.00024821,4]
[336678112,1725012649633,-500.0,0.00024821,4]
[336678113,1725012649643,-500.0,0.00024821,4]
[336678114,1725012649652,-500.0,0.00024821,4]
[336678115,1725012649662,-500.0,0.00024821,4]
[336678116,1725012649672,-500.0,0.00024821,4]
[336678117,1725012649681,-500.0,0.00024821,4]
[336678118,1725012649690,-500.0,0.00024821,4]
[336678119,1725012649699,-500.0,0.00024821,4]
[336678120,1725012649708,-500.0,0.00024821,4]
[336678121,1725012649718,-500.0,0.00024821,4]
[336678122,1725012649727,-660.47,0.00024821,4]
[336678123,1725012649737,-500.0,0.00024821,4]
[336678124,1725012649747,-1020.68,0.00024821,4]
[336678125,1725012649757,-500.0,0.00024821,4]
[336678126,1725012649766,-500.0,0.00024821,4]
[336678127,1725012649775,-500.0,0.00024821,4]
[336678128,1725012649784,-500.0,0.00024821,4]
[336678129,1725012649793,-500.0,0.00024821,4]
[336678130,1725012649803,-500.0,0.00024821,4]
[336678131,1725012649812,-500.0,0.00024821,4]
[336678132,1725012649822,-1719.53,0.00024821,4]
[336678133,1725012649832,-11949.78,0.00024821,4]
[336678134,1725012649841,-500.0,0.00024821,4]
[336678135,1725012649851,-500.0,0.00024821,4]
[336678136,1725012649860,-15917.1,0.00024821,4]
[336678137,1725012649869,-500.0,0.00024821,4]
[336678138,1725012649878,-500.0,0.00024821,4]
[336678139,1725012649887,-500.0,0.00024821,4]
[336678140,1725012649896,-4408.8,0.00024821,4]
[336678141,1725012649905,-500.0,0.00024821,4]
[336678142,1725012649914,-500.0,0.00024821,4]
[336678143,1725012649923,-2289.65,0.00024821,4]
[336678144,1725012649933,-2912.69,0.00024821,4]
[336678145,1725012649942,-500.0,0.00024821,4]
[336678146,1725012649951,-255.14487951,0.00024821,4]
[336678147,1725012649961,-500.0,0.00024821,4]
[336678148,1725012649971,-1548.58,0.00024821,4]
[336678149,1725012649980,-2124.15,0.00024821,4]
[336678150,1725012649990,-2637.91,0.00024821,4]
[336678151,1725012649999,-2086.27,0.00024821,4]
[336678152,1725012650009,-5120.8,0.00024821,4]
[336678153,1725012650020,-2333.9,0.00024821,4]
[336678154,1725012650029,-2266.47,0.00024821,4]
[336678155,1725012650038,-2259.01,0.00024821,4]
[336678156,1725012650048,-13983.29,0.00024821,4]
[336678157,1725012650058,-1428.28,0.00024821,4]
[336678158,1725012650068,-27151.38,0.00024821,4]
[336678159,1725012650077,-2106.56,0.00024821,4]
[336678160,1725012650086,-2154.54,0.00024821,4]
[336678161,1725012650096,-4045.05386335,0.00024821,4]
[336678162,1725012650713,-189.96613665,0.00024821,4]
[336678163,1725012650722,-163.9002793,0.00024821,4]
[336678164,1725012650734,-1244.54999999,0.00024821,4]
[336678165,1725012650796,-353.59275053,0.00024694,2]
[336678166,1725012650806,-272.99972071,0.00024821,4]
[336678167,1725012650815,-1011.93,0.00024821,4]
[336678168,1725012650824,-278.08692648,0.00024821,4]
[336678169,1725012650837,-328.69232328,0.00024821,4]
[336678170,1725012650853,-1352.59422969,0.00024821,4]
[336678171,1725012650865,-751.65652055,0.00024821,4]
[336678172,1725012650874,-2965.31,0.00024821,4]
[336678173,1725012650883,-1007.48,0.00024821,4]
[336678174,1725012650893,-1871.64,0.00024821,4]
[336678175,1725012650909,-1824.21,0.00024821,4]
[336678176,1725012650919,-3280.34,0.00024821,4]
[336678177,1725012650928,-1347.48,0.00024821,4]
[336678178,1725012650937,-816.06,0.00024821,4]
[336678179,1725012650947,-2899.76,0.00024821,4]
[336678180,1725012650956,-1424.9,0.00024821,4]
[336678181,1725012650965,-1252.29,0.00024821,4]
[336678182,1725012650974,-500.0,0.00024821,4]
[336678183,1725012650984,-906.86,0.00024821,4]
[336678184,1725012650993,-500.0,0.00024821,4]
[336678185,1725012651002,-2125.53165898,0.00024821,4]
[336678186,1725012651014,-587.38834102,0.00024821,4]
[336678187,1725012651023,-2198.45,0.00024821,4]
[336678188,1725012651032,-795.87,0.00024821,4]
[336678189,1725012651041,-567.37,0.00024821,4]
[336678190,1725012651050,-500.0,0.00024821,4]
[336678191,1725012651059,-2712.35,0.00024821,4]
[336678192,1725012651068,-2750.96,0.00024821,4]
[336678193,1725012651077,-500.0,0.00024821,4]
[336678194,1725012651086,-500.0,0.00024821,4]
[336678195,1725012651095,-500.0,0.00024821,4]
[336678196,1725012651104,-500.0,0.00024821,4]
[336678197,1725012651113,-500.0,0.00024821,4]
[336678198,1725012651123,-500.0,0.00024821,4]
[336678199,1725012651132,-1598.73,0.00024821,4]
[336678200,1725012651143,-500.0,0.00024821,4]
[336678201,1725012651154,-500.0,0.00024821,4]
[336678202,1725012651163,-500.0,0.00024821,4]
[336678203,1725012651172,-500.0,0.00024821,4]
[336678204,1725012651182,-1579.94,0.00024821,4]
[336678205,1725012651191,-500.0,0.00024821,4]
[336678206,1725012651200,-1046.37,0.00024821,4]
[336678207,1725012651210,-500.0,0.00024821,4]
[336678208,1725012651219,-500.0,0.00024821,4]
[336678209,1725012651229,-2414.6,0.00024821,4]
[336678210,1725012651238,-2700.36,0.00024821,4]
[336678211,1725012651247,-500.0,0.00024821,4]
[336678212,1725012651257,-205.66190421,0.00024821,4]
[336678213,1725012651267,-2566.33,0.00024821,4]
[336678214,1725012651277,-500.0,0.00024821,4]
[336678215,1725012651287,-500.0,0.00024821,4]
[336678216,1725012651296,-2330.72,0.00024821,4]
[336678217,1725012651305,-278.87969472,0.00024821,4]
[336678218,1725012651314,-2649.84,0.00024821,4]
[336678219,1725012651325,-4286.93,0.00024821,4]
[336678220,1725012651334,-578.52,0.00024821,4]
[336678221,1725012651344,-500.0,0.00024821,4]
[336678222,1725012651354,-603.80631115,0.00024821,4]
[336678223,1725012651363,-3230.34,0.00024821,4]
[336678224,1725012651373,-1178.7,0.00024821,4]
[336678225,1725012651382,-260.44,0.00024821,4]
[336678226,1725012651391,-500.0,0.00024821,4]
[336678227,1725012651400,-1908.01,0.00024821,4]
[336678228,1725012651410,-2122.42,0.00024821,4]
[336678229,1725012651420,-2210.69,0.00024821,4]
[336678230,1725012651429,-2492.68,0.00024821,4]
[336678231,1725012651439,-1061.32,0.00024821,4]
[336678232,1725012651449,-1174.62,0.00024821,4]
[336678233,1725012651458,-1039.91,0.00024821,4]
[336678234,1725012651467,-4613.54,0.00024821,4]
[336678235,1725012651476,-1831.07734482,0.00024821,4]
[336678236,1725012651488,-87.27265518,0.00024821,4]
[336678237,1725012651498,-395.08102526,0.00024821,4]
[336678238,1725012651512,-104.91897474,0.00024821,4]
[336678239,1725012651522,-500.0,0.00024821,4]
[336678240,1725012651531,-40.2628299,0.00024821,4]
[336678241,1725012651544,-1357.8971701,0.00024821,4]
[336678242,1725012651554,-1473.72,0.00024821,4]
[336678243,1725012651563,-330.98282998,0.00024821,4]
[336678244,1725012651574,-169.01717002,0.00024821,4]
[336678245,1725012651585,-409.92497741,0.00024821,4]
[336678246,1725012651597,-90.07502259,0.00024821,4]
[336678247,1725012651606,-1282.68,0.00024821,4]
[336678248,1725012651615,-1046.03444471,0.00024821,4]
[336678249,1725012651630,-358.76555529,0.00024821,4]
[336678250,1725012651640,-500.0,0.00024821,4]
[336678251,1725012651650,-156.98631894,0.00024821,4]
[336678252,1725012651661,-2671.96368106,0.00024821,4]
[336678253,1725012651671,-657.77,0.00024821,4]
[336678254,1725012651681,-500.0,0.00024821,4]
[336678255,1725012651691,-500.0,0.00024821,4]
[336678256,1725012651700,-500.0,0.00024821,2]
[336678257,1725012651710,-1651.17,0.00024821,4]
[336678258,1725012651719,-1891.47,0.00024821,4]
[336678259,1725012651729,-1037.36,0.00024821,4]
[336678260,1725012651739,-538.74,0.00024821,4]
[336678261,1725012651749,-685.33,0.00024821,4]
[336678262,1725012651759,-500.0,0.00024821,4]
[336678263,1725012651769,-565.51,0.00024821,4]
[336678264,1725012651778,-151.0,0.00024821,7]
[336678265,1725012651788,-12779.71,0.00024821,4]
[336678266,1725012651797,-245.812403,0.00024821,7]
[336678267,1725012651806,-245.812403,0.00024821,7]
[336678268,1725012651815,-151.0,0.00024821,7]
[336678269,1725012651824,-151.0,0.00024821,7]
[336678270,1725012651833,-151.0,0.00024821,7]
[336678271,1725012651842,-151.0,0.00024821,7]
[336678272,1725012651851,-151.0,0.00024821,7]
[336678273,1725012651860,-663.682539,0.00024821,7]
[336678274,1725012651869,-663.682539,0.00024821,7]
[336678275,1725012651879,-663.682539,0.00024821,7]
[336678276,1725012651888,-663.682539,0.00024821,7]
[336678277,1725012651897,-151.0,0.00024821,7]
[336678278,1725012651909,-155.035272,0.00024821,7]
[336678279,1725012651926,-433.543962,0.00024821,7]
[336678280,1725012651936,-433.543962,0.00024821,7]
[336678281,1725012651945,-151.0,0.00024821,7]
[336678282,1725012651955,-277.110349,0.00024821,7]
[336678283,1725012651964,-277.110349,0.00024821,7]
[336678284,1725012651974,-151.0,0.00024821,7]
[336678285,1725012651983,-194.802879,0.00024821,7]
[336678286,1725012651992,-156.554502,0.00024821,7]
[336678287,1725012652001,-156.554502,0.00024821,7]
[336678288,1725012652010,-151.0,0.00024821,7]
[336678289,1725012652019,-178.149562,0.00024821,7]
[336678290,1725012652028,-151.0,0.00024821,7]
[336678291,1725012652037,-151.0,0.00024821,7]
[336678292,1725012652046,-151.0,0.00024821,7]
[336678293,1725012652056,-151.0,0.00024821,7]
[336678294,1725012652066,-192.554301,0.00024821,7]
[336678295,1725012652075,-192.554301,0.00024821,7]
[336678296,1725012652084,-151.0,0.00024821,7]
[336678297,1725012652093,-2651.659067,0.00024821,7]
[336678298,1725012652102,-2651.659067,0.00024821,7]
[336678299,1725012652111,-151.0,0.00024821,7]
[336678300,1725012652120,-179.120572,0.00024821,7]
[336678301,1725012652129,-179.120572,0.00024821,7]
[336678302,1725012652138,-162.390231,0.00024821,7]
[336678303,1725012652148,-151.0,0.00024821,7]
[336678304,1725012652162,-162.390231,0.00024821,7]
[336678305,1725012652171,-151.0,0.00024821,7]
[336678306,1725012652180,-151.0,0.00024821,7]
[336678307,1725012652190,-2401.86,0.00024822,4]
[336678308,1725012652199,-2540.64,0.00024822,4]
[336678309,1725012652208,-2549.89,0.00024822,4]
[336678310,1725012652218,-2754.33,0.00024822,4]
[336678311,1725012652227,-3968.08,0.00024822,4]
[336678312,1725012652236,-2463.38,0.00024822,4]
[336678313,1725012652246,-2423.34,0.00024822,4]
[336678314,1725012652255,-2624.94,0.00024822,4]
[336678315,1725012652265,-6202.48,0.00024822,4]
[336678316,1725012652274,-3753.11,0.00024822,4]
[336678317,1725012652283,-5682.43,0.00024822,4]
[336678318,1725012652292,-3064.23,0.00024822,4]
[336678319,1725012652301,-3725.26,0.00024822,4]
[336678320,1725012652310,-2930.3,0.00024822,4]
[336678321,1725012652321,-2675.57,0.00024822,4]
[336678322,1725012652332,-3075.38,0.00024822,4]
[336678323,1725012652342,-4274.25,0.00024822,4]
[336678324,1725012652353,-2571.23,0.00024822,4]
[336678325,1725012652362,-2785.91,0.00024822,4]
[336678326,1725012652371,-3009.69,0.00024822,4]
[336678327,1725012652381,-2948.65,0.00024822,4]